[Event "17th Delhi GM Open 2019-B"]
[Site "Delhi"]
[Date "2019.01.10"]
[Round "6"]
[White "Vishnu, DevYadav"]
[Black "Sham R"]
[Result "1/2-1/2"]
[ECO "B22"]
[WhiteElo "1751"]
[BlackElo "1590"]
[Annotator "NA"]
[PlyCount "89"]
[EventDate "2019.01.09"]
[EventType "swiss"]
[EventCountry "IND"]
[SourceTitle "playchess.com"]
[Source "ChessBase"]
[SourceQuality "1"]
[TimeControl "3600+30"]

1. e4 {[%emt 0:00:00]} c5 {[%emt 0:00:00]} 2. c3 {[%emt 0:00:00]} d5 {[%emt 0:00:00]} 3. exd5 {[%emt 0:00:00]} Qxd5 {[%emt 0:00:00]} 4. Nf3 {[%emt 0:00:00]} Nc6 {[%emt 0:00:00]} 5. d4 {[%emt 0:00:00]} Bf5 {[%emt 0:00:00]} 6. Be2 {[%emt 0:00:00]} cxd4 {[%emt 0:00:00]} 7. cxd4 {[%emt 0:00:00]} e6 {[%emt 0:00:00]} 8. Nc3 {[%emt 0:00:00]} Qa5 {[%emt 0:00:00]} 9. O-O {[%emt 0:00:00]} Nf6 {[%emt 0:00:00]} 10. Qb3 {[%emt 0:00:00]} Bb4 {[%emt 0:00:00]} 11. a3 {[%emt 0:00:00]} Bxc3 {[%emt 0:00:00]} 12. Qxb7 {[%emt 0:01:19]} O-O {[%emt 0:00:00]} 13. Qxc6 {[%emt 0:00:11]} Rac8 {[%emt 0:00:00]} 14. Qa6 {[%emt 0:00:38]} Qxa6 {[%emt 0:00:00]} 15. Bxa6 {[%emt 0:00:21]} Rc6 {[%emt 0:00:00]} 16. bxc3 {[%emt 0:03:40]} Rxa6 {[%emt 0:00:00]} 17. Be3 {[%emt 0:02:07]} Rc8 {[%emt 0:00:00]} 18. Rfc1 {[%emt 0:02:50]} Rac6 {[%emt 0:00:00]} 19. Ne5 {[%emt 0:03:59]} Rxc3 {[%emt 0:00:00]} 20. Rxc3 {[%emt 0:00:47]} Rxc3 {[%emt 0:00:00]} 21. Rc1 {[%emt 0:02:15]} Rxc1+ {[%emt 0:00:00]} 22. Bxc1 {[%emt 0:00:00]} Nd5 {[%emt 0:00:00]} 23. Bd2 {[%emt 0:00:01]} f6 {[%emt 0:00:00]} 24. Nc6 {[%emt 0:01:00]} a6 {[%emt 0:00:00]} 25. Nb4 {[%emt 0:05:14]} Nxb4 {[%emt 0:00:00]} 26. Bxb4 {[%emt 0:00:11]} Kf7 {[%emt 0:00:00]} 27. f3 {[%emt 0:00:00]} Ke8 {[%emt 0:00:00]} 28. Kf2 {[%emt 0:01:04]} Kd7 {[%emt 0:00:00]} 29. Ke3 {[%emt 0:00:00]} Bb1 {[%emt 0:00:00]} 30. g3 {[%emt 0:04:07]} g5 {[%emt 0:00:00]} 31. h4 {[%emt 0:07:05]} h5 {[%emt 0:00:00]} 32. Kf2 {[%emt 0:06:04]} Bg6 {[%emt 0:00:00]} 33. Ke3 {[%emt 0:00:16]} Bb1 {[%emt 0:00:00]} 34. Kf2 {[%emt 0:00:00]} Bh7 {[%emt 0:00:00]} 35. Ke3 {[%emt 0:00:58]} Bg6 {[%emt 0:00:00]} 36. Kf2 {[%emt 0:00:00]} g4 {[%emt 0:00:00]} 37. fxg4 {[%emt 0:00:29]} hxg4 {[%emt 0:00:00]} 38. Ke3 {[%emt 0:00:33]} e5 {[%emt 0:00:00]} 39. dxe5 {[%emt 0:00:29]} fxe5 {[%emt 0:00:00]} 40. Bc3 {[%emt 0:01:53]} Ke6 {[%emt 0:00:00]} 41. Bb4 {[%emt 0:00:20]} Kd5 {[%emt 0:00:00]} 42. Bc3 {[%emt 0:00:11]} Ke6 {[%emt 0:00:00]} 43. Bb4 {[%emt 0:00:11]} Kd5 {[%emt 0:00:00]} 44. Bc3 {[%emt 0:00:16]} Ke6 {[%emt 0:00:00]} 45. Bb4 {[%emt 0:00:18]} 1/2-1/2

[Event "17th Delhi GM Open 2019-B"]
[Site "Delhi"]
[Date "2019.01.10"]
[Round "6"]
[White "Madhusoodanan, K.R."]
[Black "Farzad, Khusraw"]
[Result "0-1"]
[ECO "E65"]
[WhiteElo "1730"]
[BlackElo "1877"]
[Annotator "NA"]
[PlyCount "82"]
[EventDate "2019.01.09"]
[EventType "swiss"]
[EventCountry "IND"]
[SourceTitle "playchess.com"]
[Source "ChessBase"]
[SourceQuality "1"]
[TimeControl "3600+30"]

1. Nf3 {[%emt 0:00:00]} Nf6 {[%emt 0:00:00]} 2. c4 {[%emt 0:00:00]} g6 {[%emt 0:00:00]} 3. Nc3 {[%emt 0:00:00]} Bg7 {[%emt 0:00:00]} 4. g3 {[%emt 0:00:00]} O-O {[%emt 0:00:00]} 5. Bg2 {[%emt 0:00:00]} d6 {[%emt 0:00:00]} 6. O-O {[%emt 0:00:00]} c5 {[%emt 0:00:00]} 7. d4 {[%emt 0:00:00]} Na6 {[%emt 0:00:00]} 8. h3 {[%emt 0:00:00]} cxd4 {[%emt 0:00:00] LiveBook: 6 Games} 9. Nxd4 {[%emt 0:00:00]} Nc5 {[%emt 0:00:00]} 10. Be3 {[%emt 0:00:00] E65: King's Indian: Fianchetto: 6...c5 7 0-0 without d5 by White} (10. e4 Nfd7 11. Be3 Ne5 12. b3 a5 13. Rb1 Bd7 14. Nd5 Nc6 15. Nb5 Nb4 16. Qd2 Nxd5 17. exd5 Bf5 {1-0 (31) Maletin,P (2559)-Lesin,D (2278) Irkutsk 2009}) 10... Rb8 {[%emt 0:00:00]} 11. Qd2 {[%emt 0:00:00]} Re8 $146 {[%emt 0:01:25]} ({Predecessor:} 11... a6 12. Rfd1 Bd7 13. Rac1 Ne6 14. Nb3 Bc6 15. Nd5 Qd7 16. Ba7 Rbd8 {1-0 (27) Hinrichs,J (2072)-Elbracht,M Hamburg 2013}) 12. b4 {[%emt 0:00:00]} Ncd7 {[%emt 0:04:07]} 13. Rac1 {[%emt 0:00:00]} a6 {[%emt 0:03:42]} 14. Rfd1 {[%emt 0:00:00]} Nb6 {[%emt 0:06:39]} 15. Nd5 {[%emt 0:00:00]} Nfxd5 {[%emt 0:06:21]} 16. cxd5 {[%emt 0:00:03]} e5 {[%emt 0:00:00]} 17. Nc6 $2 {[%emt 0:02:11]} (17. dxe6 $1 $16 Bxe6 18. Nxe6 Rxe6 19. h4) 17... bxc6 {[%emt 0:01:31]} 18. dxc6 {[%emt 0:00:23]} Qc7 {[%emt 0:11:35]} 19. Qxd6 {[%emt 0:00:00]} Na8 {[%emt 0:00:01]} 20. Qxc7 {[%emt 0:17:49]} Nxc7 {[%emt 0:00:00]} 21. Rd7 {[%emt 0:00:01]} Ne6 {[%emt 0:00:00]} 22. Bd5 {[%emt 0:06:03]} Bxd7 {[%emt 0:01:33]} 23. cxd7 {[%emt 0:01:08]} Red8 {[%emt 0:00:00]} 24. Bxe6 {[%emt 0:01:07]} fxe6 {[%emt 0:00:00]} 25. Rc7 {[%emt 0:00:42]} Kf7 {[%emt 0:00:29]} 26. a3 {[%emt 0:02:11]} Rb5 {[%emt 0:00:01]} 27. Bc5 {[%emt 0:00:31]} a5 {[%emt 0:01:05]} 28. a4 {[%emt 0:00:00]} Rxb4 {[%emt 0:01:33]} 29. Bxb4 {[%emt 0:00:18]} axb4 {[%emt 0:00:00]} 30. a5 {[%emt 0:01:10]} e4 {[%emt 0:00:00]} 31. a6 {[%emt 0:00:46]} Bd4 {[%emt 0:01:04]} 32. a7 {[%emt 0:00:00]} Ke7 {[%emt 0:02:37]} 33. Rb7 {[%emt 0:01:26]} Bxa7 {[%emt 0:00:00]} 34. Rxa7 {[%emt 0:03:22]} Rxd7 {[%emt 0:00:00]} 35. Ra1 {[%emt 0:00:32]} Kd6 {[%emt 0:00:00]} 36. Kf1 {[%emt 0:00:29]} Kc5 {[%emt 0:00:01]} 37. Ke1 {[%emt 0:01:25]} b3 {[%emt 0:00:00]} 38. Rd1 $19 {[%emt 0:02:56]} Rxd1+ {[%emt 0:00:00]} 39. Kxd1 {[%emt 0:00:00]} Kb4 {[%emt 0:00:34]} 40. Kc1 {[%emt 0:00:00]} Kc3 {[%emt 0:00:00]} 41. e3 {[%emt 0:00:29]} Kd3 {[%emt 0:00:00]} 0-1

[Event "17th Delhi GM Open 2019-B"]
[Site "Delhi"]
[Date "2019.01.11"]
[Round "8"]
[White "Koustav Chakraborty"]
[Black "Vinayak, V P"]
[Result "1-0"]
[ECO "B23"]
[WhiteElo "1898"]
[BlackElo "1736"]
[Annotator "NA RC"]
[PlyCount "91"]
[EventDate "2019.01.09"]
[EventType "swiss"]
[EventCountry "IND"]
[SourceTitle "playchess.com"]
[Source "ChessBase"]
[SourceQuality "1"]
[TimeControl "3600+30"]

{[%evp 12,91,0,32767,32767,32767,32767,32767,32767,32767,32767,32767,32767,32767,32767,32767,32767,133,216,189,286,270,321,209,272,242,391,373,372,374,367,388,354,32767,32767,32767,32767,442,32767,32767,482,384,414,425,650,32767,32767,32767,32767,32767,32767,32767,432,32767,32767,32767,32767,571,452,673,647,816,782,635,837,752,680,656,716,829,877,910,939,710,847,983,697,1312,1264,1049,1007,1402]} 1. e4 {[%emt 0:00:00]} c5 {[%emt 0:00:00]} 2. Nc3 {[%emt 0:00:00]} Nc6 {[%emt 0:00:00]} 3. f4 {[%emt 0:00:00]} d6 {[%emt 0:00:00]} 4. Nf3 {[%emt 0:00:00]} a6 {[%emt 0:00:00]} 5. a4 {[%emt 0:00:00]} Nf6 {[%emt 0:00:00] B23: Closed Sicilian: Lines without g3} (5... g6 6. Bc4 Bg7 7. O-O Nf6 8. d3 O-O 9. Qe1 Nd4 10. Nxd4 cxd4 11. Nd1 d5 12. Bb3 dxe4 13. dxe4 Nd7 14. Nf2 Nc5 15. Bc4 Bd7 16. a5 Rc8 17. Qb4 {0-1 (42) Obregon Rivero,J (2526)-Gomez Garrido,C (2504) Panama City 2013}) 6. Bc4 {[%emt 0:00:00]} Bg4 {[%emt 0:00:00]} 7. O-O {[%emt 0:00:00]} Nd4 {[%emt 0:00:00]} 8. Be2 {[%emt 0:00:00]} Nxe2+ {[%emt 0:00:00]} 9. Qxe2 {[%emt 0:00:00]} g6 $146 {[%emt 0:00:00]} ({Predecessor:} 9... Qc7 10. e5 dxe5 11. Qxe5 Qc6 12. d3 e6 13. Ne4 Be7 14. Be3 {0-1 (40) Bocos,A-Lopez,R Spain 1996}) 10. d3 {[%emt 0:00:00]} Bg7 {[%emt 0:00:00]} 11. h3 {[%emt 0:00:00]} Bd7 {[%emt 0:00:00]} 12. e5 {[%emt 0:00:00]} dxe5 {[%emt 0:00:00]} 13. fxe5 {[%emt 0:00:00]} Ng8 {[%emt 0:00:00]} 14. Qf2 {[%emt 0:00:00]} Qc7 {[%emt 0:00:00]} (14... Nh6 $16 15. Be3 (15. Qxc5 Rc8 $16) 15... Bc6) 15. Be3 {[%emt 0:00:00]} Rc8 {[%emt 0:02:14]} (15... Nh6 {is a better defense.} 16. Bxc5 Be6) 16. Rae1 {[%emt 0:00:00]} Nh6 {[%emt 0:08:14]} 17. g4 {[%emt 0:00:00]} Be6 {[%emt 0:10:25]} (17... Bc6 $142 18. Bg5 Qd7) 18. b3 {[%emt 0:00:00]} O-O {[%emt 0:07:58]} (18... b6 {might work better.} 19. Ne4 a5) 19. Qh4 {[%emt 0:00:00]} Bxe5 {[%emt 0:02:31]} 20. Nxe5 {[%emt 0:00:00]} ({Inferior is} 20. Bxh6 Bxc3 21. Bxf8 Bxe1 $11) 20... Qxe5 {[%emt 0:00:00]} 21. Ne4 {[%emt 0:07:39]} ({Less strong is} 21. Bxh6 Qxc3 22. Bxf8 (22. Qxe7 Rfd8 $16) 22... Rxf8 $18) 21... f5 {[%emt 0:02:59]} 22. Bxh6 {[%emt 0:00:40]} fxe4 {[%emt 0:00:03]} 23. Bxf8 {[%emt 0:00:16]} Rxf8 {[%emt 0:01:21]} 24. Rxf8+ {[%emt 0:00:04]} Kxf8 {[%emt 0:00:01]} 25. Rxe4 {[%emt 0:00:19]} Qd6 {[%emt 0:00:31]} 26. Qf2+ {[%emt 0:00:11]} ({Resist} 26. Qxh7 Bd5 $18) 26... Kg7 {[%emt 0:00:28]} 27. Qe3 {[%emt 0:00:47]} Kf6 {[%emt 0:01:05]} (27... Kf7 $142 28. Re5 Kf6) 28. Qf2+ {[%emt 0:00:19]} Kg7 {[%emt 0:00:11]} 29. Qf4 {[%emt 0:00:08]} Qxf4 {[%emt 0:01:34]} 30. Rxf4 {[%emt 0:00:04]} Bd5 {[%emt 0:00:21]} 31. g5 {[%emt 0:00:24]} Be6 {[%emt 0:01:12]} 32. Re4 {[%emt 0:00:04]} Kf7 {[%emt 0:00:02]} 33. h4 {[%emt 0:00:04]} a5 {[%emt 0:00:54]} 34. Kf2 {[%emt 0:00:33]} b6 {[%emt 0:00:17]} 35. Ke3 {[%emt 0:00:57]} Bf5 {[%emt 0:00:21]} 36. Re5 {[%emt 0:01:00]} e6 {[%emt 0:00:07]} 37. c3 {[%emt 0:00:06]} Ke7 {[%emt 0:00:06]} 38. d4 {[%emt 0:00:05]} Kd6 {[%emt 0:00:15] [#]} 39. b4 $1 {[%emt 0:00:06]} axb4 {[%emt 0:02:04]} 40. cxb4 {[%emt 0:00:12]} cxb4 {[%emt 0:00:26]} 41. Rb5 {[%emt 0:00:04] Double Attack} Kc6 {[%emt 0:00:27]} 42. Rxb4 {[%emt 0:00:06]} Bh3 {[%emt 0:00:35]} 43. Rc4+ {[%emt 0:00:13]} Kd7 {[%emt 0:00:46]} 44. Kf4 {[%emt 0:00:04]} Bf1 {[%emt 0:00:13]} 45. Rc1 {[%emt 0:00:04]} Bd3 $18 {[%emt 0:00:07]} 46. Ke5 {[%emt 0:00:04]} 1-0

[Event "17th Delhi GM Open 2019-B"]
[Site "Delhi"]
[Date "2019.01.11"]
[Round "8"]
[White "Dhanush Ragav N S"]
[Black "Heikrujam Jacky Singh"]
[Result "1/2-1/2"]
[ECO "A57"]
[WhiteElo "1854"]
[BlackElo "1870"]
[Annotator "NA RC"]
[PlyCount "57"]
[EventDate "2019.01.09"]
[EventType "swiss"]
[EventCountry "IND"]
[SourceTitle "playchess.com"]
[Source "ChessBase"]
[SourceQuality "1"]
[TimeControl "3600+30"]

{[%evp 13,55,56,53,48,54,36,41,39,48,35,42,25,41,35,69,57,62,62,72,32767,60,34,56,32767,66,74,64,38,67,-20,-23,-4,26,13,0,0,0,-120,32767,32767,32767,-106,-113,-164]} 1. d4 {[%emt 0:00:00]} Nf6 {[%emt 0:00:00]} 2. c4 {[%emt 0:00:00]} c5 {[%emt 0:00:00]} 3. d5 {[%emt 0:00:00]} b5 {[%emt 0:00:00]} 4. Qc2 {[%emt 0:00:00]} bxc4 {[%emt 0:00:00]} 5. e4 {[%emt 0:00:00]} d6 {[%emt 0:00:00]} 6. Bxc4 {[%emt 0:00:00]} g6 {[%emt 0:00:00]} 7. Nf3 {[%emt 0:00:00]} Bg7 {[%emt 0:00:00]} 8. O-O {[%emt 0:00:00]} O-O {[%emt 0:00:00]} 9. h3 {[%emt 0:00:00]} Ba6 {[%emt 0:00:00]} 10. Na3 {[%emt 0:03:24] A57: Benko/Volga Gambit} (10. Nbd2 Nfd7 11. Rb1 Nb6 12. b3 Nxc4 13. bxc4 Qa5 14. Rb3 Qa4 15. Bb2 Bxb2 16. Rxb2 Qxc2 17. Rxc2 Nd7 {0-1 (36) Mamedyarov,S (2764)-Ivanchuk,V (2766) Beijing 2012}) 10... Bxc4 {[%emt 0:00:00]} 11. Nxc4 {[%emt 0:00:23]} Nbd7 {[%emt 0:00:00] LiveBook: 3 Games} 12. Bd2 {[%emt 0:06:10]} Qc7 {[%emt 0:00:00]} 13. Bc3 {[%emt 0:05:28]} Ne8 $146 {[%emt 0:06:22]} ({Predecessor:} 13... Nb6 14. Nxb6 Qxb6 15. Rad1 Rfd8 16. Rfe1 Nd7 17. Bxg7 Kxg7 {0-1 (46) Brezalieva,S (1456)-Litvinenko,E (1978) Plovdiv 2014}) 14. Rad1 {[%emt 0:08:08]} Bxc3 {[%emt 0:03:33]} 15. Qxc3 {[%emt 0:02:04]} f6 {[%emt 0:06:12]} 16. g3 {[%emt 0:03:19]} Ng7 {[%emt 0:01:31]} 17. Kg2 {[%emt 0:00:40]} a5 {[%emt 0:00:47]} 18. Nfd2 {[%emt 0:00:38]} Rfb8 {[%emt 0:04:17]} 19. f4 {[%emt 0:00:25]} Rb4 {[%emt 0:04:12]} 20. Rc1 {[%emt 0:00:28]} a4 {[%emt 0:02:51]} 21. b3 {[%emt 0:00:30]} (21. g4 $14) 21... axb3 {[%emt 0:00:33]} 22. axb3 {[%emt 0:00:18]} Rb7 {[%emt 0:02:25]} 23. Ra1 {[%emt 0:00:45]} Rba7 {[%emt 0:00:10]} 24. Ne3 {[%emt 0:00:27]} Qb7 {[%emt 0:03:30]} 25. Nc2 {[%emt 0:00:35]} (25. Rxa7 $11 {keeps the balance.} Rxa7 26. g4) 25... Ne8 {[%emt 0:03:21]} 26. Rxa7 {[%emt 0:00:29]} Rxa7 {[%emt 0:00:01]} 27. Ra1 {[%emt 0:00:32]} (27. Qd3 $11 {keeps the balance.}) 27... Rxa1 {[%emt 0:03:31]} 28. Nxa1 $19 {[%emt 0:00:28]} (28. Qxa1 $17 {was called for.} f5 29. Qa4) 28... Qb5 {[%emt 0:00:53]} 29. Kf2 {[%emt 0:00:29]} 1/2-1/2

[Event "17th Delhi GM Open 2019-B"]
[Site "Delhi"]
[Date "2019.01.11"]
[Round "8"]
[White "Anwar N K"]
[Black "Sai Raj Gopal K"]
[Result "1-0"]
[ECO "B51"]
[WhiteElo "1817"]
[BlackElo "1727"]
[Annotator "NA RC"]
[PlyCount "165"]
[EventDate "2019.01.09"]
[EventType "swiss"]
[EventCountry "IND"]
[SourceTitle "playchess.com"]
[Source "ChessBase"]
[SourceQuality "1"]
[TimeControl "3600+30"]

{[%evp 8,146,25,12,15,32767,32767,32767,32767,32767,32767,32767,32767,32767,32767,32767,32767,32767,32767,-7,-8,-25,0,-6,0,-25,6,0,0,-14,11,-7,-10,-9,-21,-7,-4,-13,0,0,0,0,0,-45,-36,-45,-31,-35,-32,-29,32767,-32,-13,-72,-63,-72,-78,-98,32767,-110,-69,-83,-81,-74,-85,-80,-81,-81,-87,-113,32767,-150,32767,32767,-87,-188,32767,-142,-135,-148,-127,32767,-225,-175,-188,32767,-118,-187,-204,-229,-271,-230,-174,-251,-195,-218,-113,-100,-265,-210,-255,-727,-1234,-936,616,639,912,1245,713,1247,834,254,252,247,427,32767,32767,32767,32767,32767,32767,32767,472,405,32767,32767,32767,32767,32767,32767,806,2199,908,32767,4025,5284,32767,32767,29965,29970,29970]} 1. e4 {[%emt 0:00:00]} c5 {[%emt 0:00:00]} 2. Nf3 {[%emt 0:00:00]} d6 {[%emt 0:00:00]} 3. Bb5+ {[%emt 0:00:00]} Nd7 {[%emt 0:00:00]} 4. O-O {[%emt 0:00:00]} a6 {[%emt 0:00:00]} 5. Be2 {[%emt 0:00:00]} Ngf6 {[%emt 0:00:00] LiveBook: 28 Games} 6. d3 {[%emt 0:00:00] B51: Sicilian: Moscow Variation (3 Bb5+) without 3...Bd7} g6 {[%emt 0:00:00]} 7. b3 {[%emt 0:00:00]} (7. c4 b6 8. Nc3 Bb7 9. Rb1 Bg7 10. b4 Rb8 11. bxc5 bxc5 12. Qa4 O-O 13. Rb3 e6 {½-½ (41) Antipov,M (2576)-Grandelius,N (2649) Gjakova 2016}) 7... Bg7 {[%emt 0:00:00]} 8. Bb2 {[%emt 0:00:00]} O-O {[%emt 0:00:00]} 9. Nbd2 {[%emt 0:00:00]} e5 $146 {[%emt 0:00:00]} ({Predecessor:} 9... Nh5 10. Bxg7 Nxg7 11. d4 b6 12. Re1 Bb7 13. c4 e5 14. dxe5 dxe5 {1-0 (64) Kasik,M (1988)-Vesely,M (2039) Czechia 2011}) 10. a4 {[%emt 0:00:00]} Ne8 {[%emt 0:00:00]} 11. Nc4 {[%emt 0:00:00]} Ndf6 {[%emt 0:00:00]} 12. Ne1 {[%emt 0:00:00]} Be6 {[%emt 0:00:00]} 13. g3 {[%emt 0:00:00]} b5 {[%emt 0:00:00]} 14. axb5 {[%emt 0:00:00]} axb5 {[%emt 0:00:00]} 15. Ne3 {[%emt 0:00:00]} Rxa1 {[%emt 0:00:00]} 16. Qxa1 {[%emt 0:00:00]} Qb6 {[%emt 0:00:00]} 17. N1g2 {[%emt 0:00:00]} Bh3 {[%emt 0:00:00]} 18. c4 {[%emt 0:00:00]} bxc4 {[%emt 0:00:00]} 19. bxc4 {[%emt 0:00:00]} Nc7 {[%emt 0:00:00]} 20. Bc3 {[%emt 0:01:08]} Ra8 {[%emt 0:00:00]} 21. Qb1 {[%emt 0:00:01]} Qxb1 {[%emt 0:00:00]} 22. Rxb1 {[%emt 0:00:01]} Ne6 {[%emt 0:00:00]} 23. Ra1 {[%emt 0:08:59]} Rxa1+ {[%emt 0:00:00]} 24. Bxa1 {[%emt 0:00:05]} Nd4 {[%emt 0:00:00]} 25. Bxd4 {[%emt 0:02:06]} cxd4 {[%emt 0:00:00]} 26. Nc2 {[%emt 0:00:51]} Be6 {[%emt 0:00:00]} 27. Na3 {[%emt 0:01:35]} Kf8 {[%emt 0:00:00]} 28. f4 {[%emt 0:01:35]} Ke7 {[%emt 0:00:00]} 29. Nc2 {[%emt 0:03:06]} Kd7 {[%emt 0:00:00]} 30. Nce1 {[%emt 0:00:26]} (30. Nh4 $11) 30... Ne8 {[%emt 0:00:00]} 31. Nf3 {[%emt 0:00:33]} f6 {[%emt 0:00:00]} 32. Nfh4 {[%emt 0:02:30]} Bf7 {[%emt 0:00:00]} 33. f5 {[%emt 0:01:56]} g5 {[%emt 0:00:00]} 34. Nf3 {[%emt 0:00:08]} h5 {[%emt 0:00:00]} 35. h3 {[%emt 0:00:50]} Kc6 {[%emt 0:00:00]} 36. g4 {[%emt 0:02:44]} h4 {[%emt 0:00:00]} 37. Bd1 {[%emt 0:00:28]} Kc5 {[%emt 0:00:00]} 38. Kf1 {[%emt 0:00:28]} Kb4 {[%emt 0:00:00]} 39. Ke2 {[%emt 0:00:18]} Kc3 {[%emt 0:00:00]} 40. Ba4 {[%emt 0:01:18]} Nc7 {[%emt 0:00:00]} 41. Nd2 {[%emt 0:01:37]} (41. Nge1 $17 {is a better defense.}) 41... Na6 {[%emt 0:00:00]} 42. Ne1 {[%emt 0:01:01]} Bf8 {[%emt 0:00:00]} 43. Bb5 {[%emt 0:00:58]} Nc5 {[%emt 0:00:58]} 44. Nb1+ {[%emt 0:03:13] [#]} Kb2 $1 {[%emt 0:00:15]} 45. Nd2 {[%emt 0:00:18]} Be7 {[%emt 0:00:34]} 46. Ndf3 {[%emt 0:01:26]} Kc3 {[%emt 0:00:15]} (46... Bd8 $19 47. Bc6 Bb6) 47. Nd2 {[%emt 0:00:49]} Bd8 {[%emt 0:00:56]} 48. Nb1+ {[%emt 0:00:01]} Kb2 {[%emt 0:00:02]} 49. Nd2 {[%emt 0:00:03]} Ba5 {[%emt 0:00:44]} 50. Bc6 {[%emt 0:03:57]} Na6 {[%emt 0:01:43]} 51. Ba4 {[%emt 0:01:29]} Nc7 {[%emt 0:00:53]} (51... Bb6 $19 52. Bb5 Nb4) 52. Nef3 {[%emt 0:00:49] [#]} Be8 $1 {[%emt 0:00:08]} 53. Bxe8 {[%emt 0:00:13]} Nxe8 {[%emt 0:00:05]} 54. c5 $2 {[%emt 0:00:10]} (54. Ne1 Nc7 55. c5 Bxd2 56. cxd6) 54... Bxd2 $1 {[%emt 0:02:02]} 55. Nxd2 {[%emt 0:00:11]} Kc2 $4 {[%emt 0:00:04]} (55... dxc5 $19 56. Nc4+ Kc3) 56. c6 {[%emt 0:00:33]} Kc3 {[%emt 0:01:26] [#]} 57. Nf3 $1 {[%emt 0:00:58]} Kb4 {[%emt 0:00:36] [#]} 58. Nxg5 $1 {[%emt 0:00:10]} Kc5 {[%emt 0:00:47] [#]} 59. Nf3 $2 {[%emt 0:00:15]} (59. c7 $1 {[%mdl 512]} Nxc7 60. Nh7) 59... Kxc6 {[%emt 0:00:00]} 60. Nxh4 {[%emt 0:00:11]} Kd7 {[%emt 0:01:20]} (60... d5 {is a better defense.} 61. exd5+ Kxd5) 61. Ng6 {[%emt 0:00:44]} Nc7 {[%emt 0:00:00]} 62. h4 {[%emt 0:00:09]} Ke8 {[%emt 0:00:00]} 63. g5 {[%emt 0:00:23]} Kf7 {[%emt 0:00:10]} 64. gxf6 {[%emt 0:01:34]} Kxf6 $2 {[%emt 0:00:00] [#]} (64... Ne8 {is more resistant.} 65. Ne7 Nxf6) 65. Nf8 $1 {[%emt 0:00:59]} Nb5 {[%emt 0:00:00]} 66. Ne6 {[%emt 0:01:09]} d5 {[%emt 0:00:36]} 67. h5 {[%emt 0:00:14]} dxe4 {[%emt 0:00:06]} 68. dxe4 {[%emt 0:00:23]} Nd6 {[%emt 0:00:45] [#]} 69. h6 $1 {[%emt 0:00:46]} Nf7 {[%emt 0:00:09]} 70. h7 {[%emt 0:00:09]} Ke7 {[%emt 0:00:28]} 71. Kd3 {[%emt 0:00:01]} Kf6 {[%emt 0:00:06]} 72. Kc4 {[%emt 0:01:00]} Ke7 {[%emt 0:01:54]} 73. Ng5 {[%emt 0:00:38]} Nh8 {[%emt 0:00:20]} 74. Ne6 {[%emt 0:00:31]} Kf6 {[%emt 0:00:41]} 75. Nf8 {[%emt 0:00:29]} Kg7 {[%emt 0:00:12]} 76. Ng6 {[%emt 0:00:34]} Nf7 {[%emt 0:00:21]} 77. h8=Q+ {[%emt 0:00:05]} Nxh8 {[%emt 0:00:07]} 78. Nxe5 {[%emt 0:00:08]} Kf6 {[%emt 0:00:27]} 79. Kxd4 {[%emt 0:00:02]} Ke7 {[%emt 0:00:05]} 80. Ng6+ {[%emt 0:00:15]} Nxg6 {[%emt 0:00:14]} 81. fxg6 {[%emt 0:00:00]} Kf6 {[%emt 0:00:03]} 82. Kd5 {[%emt 0:00:14]} Kxg6 {[%emt 0:00:00]} 83. Ke6 {[%emt 0:00:20]} 1-0